Cogmind - Beta 16 --- EXPLORER MODE // 2026.01.29 @ 11:31:00 Player: K.K.Y. Result: Destroyed by 5P-6AZ(R) with Subdweller Machine Gun Performance ------------- Evolutions (0) 0 Regions Visited (3) 600 Robots Destroyed (44) 220 Value Destroyed (982) 982 Prototype IDs (12) 240 Alien Tech Used (0) 0 Bonus (-158) -158 TOTAL SCORE: 1884 Bonus ------- Friendly Fire -158 Cogmind --------- Core Integrity 0/250 Matter 33/300 Energy 100/100 System Corruption 0% Temperature Cool (0) Movement Treading (260) Ox1 Location -10/Subcaves Parts ------- > --- POWER (1) -------- (None) > --- PROPULSION (2) --- Spiked Treads > --- UTILITY (3) ------ Large Storage Unit > --- WEAPON (2) ------- Barrage Gun > --- INVENTORY (15) --- Light Nuclear Core Scrap Suit Improved Heat Sink Medium Storage Unit Huge Storage Unit Humpback Improved Terrain Scanner Makeshift Kinetic Plating Cobbler Unit Mining Laser Multitool Peak State ------------ > --- POWER ------------ Ion Engine > --- PROPULSION ------- Spiked Treads Spiked Treads > --- UTILITY ---------- Large Storage Unit Structural Scanner Makeshift System Restoration Module > --- WEAPON ----------- Barrage Gun Bore Cannon > --- INVENTORY -------- Light Nuclear Core Light Treads Light Treads Light Treads Scrap Suit Improved Heat Sink Medium Storage Unit Huge Storage Unit Improved Terrain Scanner Cobbler Unit Assault Rifle Mining Laser Multitool [Rating: 22] Favorites ----------- Power Ion Engine Engine Ion Engine Propulsion Light Treads Treads Light Treads Utility Large Storage Unit Device Structural Scanner Storage Large Storage Unit Weapon Assault Rifle Ballistic Gun Assault Rifle Ballistic Cannon Bore Cannon Special Weapon Mining Laser Build | -11 -10 -10 -10 ------- Run | Yrd Mat Min Sub Slots Evolved 1 | . 1 . . Power . | . . . . Propulsion . | . . . . Utility 1 | . 1 . . Weapon . | . . . . Parts Attached 19 | 6 3 1 9 Power 1 | 1 . . . Engine 1 | 1 . . . Core . | . . . . Reactor . | . . . . Propulsion 5 | 2 . . 3 Treads 5 | 2 . . 3 Leg . | . . . . Wheel . | . . . . Hover . | . . . . Flight . | . . . . Utility 5 | 1 2 1 1 Device 3 | . 1 1 1 Storage 2 | 1 1 . . Processor . | . . . . Hackware . | . . . . Protection . | . . . . Artifact . | . . . . Weapon 8 | 2 1 . 5 Energy Gun . | . . . . Energy Cannon . | . . . . Ballistic Gun 6 | 2 1 . 3 Ballistic Cannon 1 | . . . 1 Launcher . | . . . . Special Weapon 1 | . . . 1 Impact Weapon . | . . . . Slashing Weapon . | . . . . Piercing Weapon . | . . . . Special Melee Weapon . | . . . . Unidentified Prototypes . | . . . . Parts Lost 8 | . . . 8 Power 1 | . . . 1 Propulsion 1 | . . . 1 Utility 3 | . . . 3 Weapon 3 | . . . 3 Highest Loss Streak 4 | . . . 4 To Critical Strikes . | . . . . Average Backups 11 | 4 7 13 12 Power . | . . . 1 Propulsion 1 | . 1 2 . Utility 6 | 2 4 8 7 Weapon 2 | . 1 2 2 Tool/Special . | . . . . Unused Backups 16 | . . . 16 Power 1 | . . . 1 Propulsion 2 | . . . 2 Utility 10 | . . . 10 Weapon 1 | . . . 1 Tool/Special 2 | . . . 2 Average Slot Usage (%) 88 | . 84 91 89 Engine 11 | . 12 12 11 Treads 22 | . 25 25 21 Device 16 | . 9 16 18 Storage 12 | . 12 12 12 Ballistic Gun 19 | . 25 25 15 Ballistic Cannon 4 | . . . 7 Peak Build Rating 22 | 6 9 11 22 Average Rating 12 | 3 7 9 16 On Entrance 6 | . 6 8 11 Avg Prop Armor Cover (%) . | . . . . Naked Turns . | . . . . Heaviest Build 43 | 18 30 31 43 Greatest Support 40 | 40 40 40 40 Greatest Overweight (x) 1 | . . . 1 Average Overweight (x) . | . . . . Largest Inventory Capacity 15 | 10 15 15 15 Average Capacity 14 | 5 12 15 15 Most Carried 15 | 5 11 15 15 Average Carried 12 | 4 7 13 14 Final Capacity 15 | 10 15 15 15 Final Carried 15 | 3 11 15 14 Class Distribution -------------------- 84% | Hacker-Mutant 15% | Derelict-Mutant Dominant Class ---------------- Hacker-Mutant | -10/Materials Hacker-Mutant | -10/Mines Hacker-Mutant | -10/Subcaves Resources | -11 -10 -10 -10 ----------- Run | Yrd Mat Min Sub Matter Collected 1134 | 304 206 46 578 Remotely . | . . . . Salvage Created 1355 | 190 487 89 589 Parts 103 | 18 38 5 42 Haulers Intercepted 2 | . 2 . . Recyclers Shooed . | . . . . Parts Field Recycled . | . . . . Retrieved Matter . | . . . . Parts Self-Destructed . | . . . . Prevented . | . . . . Parts Restored . | . . . . Kills | -11 -10 -10 -10 ------- Run | Yrd Mat Min Sub Combat Hostiles Destroyed 25 | . 8 2 15 Guns 19 | . 8 2 9 Cannons 6 | . . . 6 Classes Destroyed 12 | 2 6 . 4 Worker 1 | . 1 . . Builder 5 | . 5 . . Tunneler 5 | 5 . . . Hauler 2 | . 2 . . Recycler 1 | 1 . . . Watcher 3 | . 3 . . Swarmer 5 | . 4 . 1 Grunt 6 | . 4 2 . Sentry 2 | . . . 2 Artisan 1 | . . . 1 Subdweller 12 | . . . 12 Zionite 2 | . . . 2 Best Kill Streak 4 | 4 4 2 2 Combat Bots Only 2 | . 2 2 2 Max Kills in Single Turn 1 | 1 1 1 1 Gunslinging . | . . . . Exploded . | . . . . Melee . | . . . . Uniques/NPCs Destroyed . | . . . . Combat | -11 -10 -10 -10 -------- Run | Yrd Mat Min Sub Hostile Shots Fired 146 | . 37 9 100 Missed 47 | . 10 5 32 Hits 99 | . 27 4 68 Projectile 99 | . 27 4 68 AOE 2 | . . . 2 Damage Taken 1431 | . 224 41 1166 Core 255 | . 63 . 192 Absorbed by Shields . | . . . . Ignored by Resistances 771 | . 140 25 606 Core Remaining (%) 100 | 100 . . . Volleys Fired 152 | 11 40 6 95 Largest 2 | 2 2 2 2 Hottest 120 | 40 40 40 120 Shots Fired 278 | 22 80 12 164 Gun 218 | 22 80 12 104 Cannon 59 | . . . 59 Launcher . | . . . . Special 1 | . . . 1 Kinetic 277 | 22 80 12 163 Thermal 1 | . . . 1 Explosive . | . . . . Electromagnetic . | . . . . Robot Hit Streak 25 | 18 18 13 25 Robot Miss Streak 2 | . 2 . 1 Penetration Max . | . . . . Secondary Targets 4 | . 2 1 1 Max Gunslinging Chain 1 | . 1 1 1 Shots Hit Robots 178 | 18 59 12 89 Core Hits 68 | 7 28 4 29 Critical Kills 5 | 1 1 . 3 Critical Parts Destroyed . | . . . . Critical Strikes 13 | 1 1 . 11 Destroy 13 | 1 1 . 11 Melee Attacks . | . . . . Impact . | . . . . Slashing . | . . . . Piercing . | . . . . Sneak Attacks . | . . . . Combat Hostiles . | . . . . Follow-up Attacks . | . . . . Damage Inflicted 2403 | 183 653 144 1423 Guns 1907 | 183 653 144 927 Cannons 486 | . . . 486 Explosions . | . . . . Melee . | . . . . Ramming 10 | . . . 10 Kinetic 2393 | 183 653 144 1413 Thermal . | . . . . Explosive . | . . . . Electromagnetic . | . . . . Impact . | . . . . Slashing . | . . . . Piercing . | . . . . Highest Corruption . | . . . . Average Corruption . | . . . . Corruption Purged . | . . . . Corruption Blocked . | . . . . Overload Shots . | . . . . Overflow Damage . | . . . . Projectiles . | . . . . Explosions . | . . . . Melee . | . . . . Knockbacks 7 | . . . 7 Impact . | . . . . Kinetic 7 | . . . 7 Secondary . | . . . . Self-Inflicted Damage . | . . . . Shots . | . . . . Rammed 4 | . . . 4 Targets Rammed 4 | . . . 4 Kicked . | . . . . Crushed . | . . . . Highest Temperature 18 | . 18 2 11 Average Temperature 6 | . 8 2 6 Received Heat Transfer 513 | . 186 36 291 Siege Activations . | . . . . Martial Activations . | . . . . Shielding Activations . | . . . . Robots Disrupted . | . . . . Combat Hostiles . | . . . . Robots Corrupted . | . . . . Combat Hostiles . | . . . . Parts Fried . | . . . . Impact Corruptions . | . . . . Robots Melted . | . . . . Combat Hostiles . | . . . . Parts Melted . | . . . . Heat Transferred . | . . . . Parts Sabotaged . | . . . . Parts Stolen . | . . . . Parts Stripped . | . . . . Power Chain Reactions . | . . . . Alert | -11 -10 -10 -10 ------- Run | Yrd Mat Min Sub Maximum Alert Level . | . . . . Low Security (%) 100 | 100 100 100 . Level 1 . | . . . . Level 2 . | . . . . Level 3 . | . . . . Level 4 . | . . . . Level 5 . | . . . . High Security . | . . . . Max Security . | . . . . Peak Influence 70 | 10 70 35 . Initial 6 | . . 6 . Average 4 | 2 6 1 . Influence Increases 420 | 30 280 50 60 Destroy 0b10 Robot/C 260 | . 160 40 60 Destroy 0b10 Robot/NC 85 | 30 55 . . Destroy Leader 60 | . 50 10 . Successful Hack 15 | . 15 . . Influence Decreases 420 | 30 255 75 60 Entered New Map 19 | . . 19 . Time Decay 401 | 30 255 56 60 Squads Dispatched . | . . . . Investigation . | . . . . Extermination . | . . . . Reinforcement . | . . . . Assault . | . . . . Garrison . | . . . . Intercept . | . . . . Searches Triggered . | . . . . Construction Impeded . | . . . . Haulers Reinforced . | . . . . Active Scanning Responses . | . . . . Cargo Convoy Interrupts . | . . . . Stealth | -11 -10 -10 -10 --------- Run | Yrd Mat Min Sub Distress Signals . | . . . . Communications Jammed . | . . . . Distress Signals . | . . . . Times Spotted 30 | . 11 2 17 Peak Tracking Total 2 | . 2 2 2 Tactical Retreats . | . . . . Traps | -11 -10 -10 -10 ------- Run | Yrd Mat Min Sub Traps Triggered 4 | . . . 4 Indirectly . | . . . . Trap Hack Attempts . | . . . . Triggered . | . . . . Disarmed . | . . . . Reprogrammed . | . . . . Reused . | . . . . Traps Extracted . | . . . . Installed . | . . . . Triggered . | . . . . Machines | -11 -10 -10 -10 ---------- Run | Yrd Mat Min Sub Machines Disabled . | . . . . Max in Single Turn . | . . . . Machines Repaired . | . . . . Machines Dismantled . | . . . . Machines Sabotaged . | . . . . Overloaded Fab Kills . | . . . . Hacking | -11 -10 -10 -10 --------- Run | Yrd Mat Min Sub Machines Accessed 7 | . 5 . 2 Terminals 3 | . 3 . . Fabricators . | . . . . Repair Stations . | . . . . Recycling Units 2 | . 2 . . Scanalyzers . | . . . . Garrison Access . | . . . . Total Hacks 21 | . 16 . 5 Successful 14 | . 9 . 5 Failed 7 | . 7 . . Catastrophic 1 | . 1 . . Database Lockouts . | . . . . Manual 12 | . 12 . . Terminals 14 | . 14 . . Fabricators . | . . . . Repair Stations . | . . . . Recycling Units 2 | . 2 . . Scanalyzers . | . . . . Garrison Access . | . . . . Terminal Hacks 12 | . 7 . 5 Record 4 | . . . 4 Part Schematic 4 | . 4 . . Robot Schematic 1 | . 1 . . Robot Analysis 1 | . 1 . . Zone Layout 1 | . 1 . . Proto ID Catalog 1 | . . . 1 Fabricator Hacks . | . . . . Repair Station Hacks . | . . . . Recycling Unit Hacks 2 | . 2 . . Retrieve Components 2 | . 2 . . Scanalyzer . | . . . . Garrison Access Hacks . | . . . . Unauthorized Hacks . | . . . . Terminals . | . . . . Fabricators . | . . . . Repair Stations . | . . . . Recycling Units . | . . . . Scanalyzers . | . . . . Garrison Access . | . . . . Data Cores Recovered . | . . . . Used . | . . . . Hacking Detections 3 | . 3 . . Full Trace Events . | . . . . Feedback Events . | . . . . Feedback Blocked . | . . . . Robot Schematics Acquired 1 | . 1 . . Robots Built . | . . . . Authchips . | . . . . Time . | . . . . Total Robot Build Rating . | . . . . Part Schematics Acquired 2 | . 2 . . Parts Built . | . . . . Authchips . | . . . . Time . | . . . . Total Part Build Rating . | . . . . Part Studies Acquired . | . . . . Parts Repaired . | . . . . Time . | . . . . Parts Recycled . | . . . . Recycled Matter . | . . . . Retrieved Matter . | . . . . Retrieved Components 7 | . 7 . . Parts Scanalyzed . | . . . . Part Schematics Acquired . | . . . . Parts Damaged . | . . . . Bothacking | -11 -10 -10 -10 ------------ Run | Yrd Mat Min Sub Used RIF Installer . | . . . . Robots Hacked . | . . . . Non-combat . | . . . . Combat . | . . . . Robot Hacks Applied . | . . . . Relay Couplers Released . | . . . . Fabnet Peak Effective % . | . . . . Robots Rewired . | . . . . Allies Hacked . | . . . . Hacks Repelled . | . . . . Allies | -11 -10 -10 -10 -------- Run | Yrd Mat Min Sub Total Allies . | . . . . Largest Group . | . . . . Highest-Rated Group . | . . . . Highest-Rated Ally . | . . . . Total Orders . | . . . . Ally Attacks . | . . . . Total Damage . | . . . . Kills . | . . . . Allies Corrupted . | . . . . Allies Melted . | . . . . Intel | -11 -10 -10 -10 ------- Run | Yrd Mat Min Sub Active Infowar (turns) 5019 | . 1002 879 3138 Sensors 2337 | . 1002 879 456 Structural 3474 | . . 336 3138 Robot Analysis Total 1 | . 1 . . Derelict Logs Recovered 6 | . . 3 3 Drone Launches . | . . . . Drone Recoveries . | . . . . Exploration | -11 -10 -10 -10 ------------- Run | Yrd Mat Min Sub Turns Passed 5496 | 140 1241 879 3236 Spaces Moved 2632 | 70 670 523 1369 Core 17 | 17 . . . Treads 2615 | 53 670 523 1369 Legs . | . . . . Wheels . | . . . . Hover . | . . . . Flight . | . . . . Fastest Speed 50 | 50 160 160 160 Average Speed 187 | 133 160 160 213 Slowest Speed 260 | 160 160 160 260 Overloaded Moves . | . . . . Propulsion Burnouts . | . . . . Robots Hopped . | . . . . Potential Cave-ins . | . . . . Cave-ins Triggered . | . . . . Exploration Rate (%) 68 | 4 89 98 83 Regions Visited 3 Branch Regions 2 Pre-discovered Areas 3 | . . 1 2 Known Exits Taken 3 | 1 1 1 . Unknown Exits Taken . | . . . . Scrap Searched 13 | . . . 13 Spaces Dug 7 | . . . 7 Terrain Destroyed 15 | . . . 15 Melee . | . . . . Projectile 15 | . . . 15 AOE . | . . . . Terrain Rammed . | . . . . Walls Destroyed . | . . . . Machines Disabled . | . . . . Actions | -11 -10 -10 -10 --------- Run | Yrd Mat Min Sub Total 2928 | 96 766 553 1513 Wait 79 | 3 42 20 14 Move 2629 | 69 669 522 1369 Hop . | . . . . Pick Up 29 | 7 10 4 8 Fast Attach 3 | 2 . . 1 Attach 9 | 4 2 1 2 Detach 1 | . 1 . . Swap 9 | . 1 . 8 Drop 13 | . 1 . 12 Fire 152 | 11 40 6 95 Melee . | . . . . Ram . | . . . . Kick . | . . . . Crush 4 | . . . 4 Escape Stasis . | . . . . Rewire . | . . . . Trap . | . . . . Miscellaneous . | . . . . Route ------- -11/Scrapyard -10/Materials (discovered 5 exits: *Mat x3 / *Min x2) -10/Mines (discovered 4 exits: *Mat x2 / *Exi / *Sub) -10/Subcaves (discovered 1 exit: *Mat) History --------- Turn | Location | Event 9 | -11/Scrapyard | Identified exit to Materials 9 | -11/Scrapyard | Discovered exit to Materials (range 16) 141 | -11/Scrapyard | Entered Materials 141 | -10/Materials | Evolved 1 slot: Utility x1 315 | -10/Materials | Build established: Hacker-Mutant 338 | -10/Materials | Identified exit to Materials 338 | -10/Materials | Discovered exit to Materials (range 3) 389 | -10/Materials | Identified exit to Mines 389 | -10/Materials | Discovered exit to Mines (range 15) 561 | -10/Materials | Discovered exit to Materials (range 15) 561 | -10/Materials | Discovered exit to Mines (range 10) 695 | -10/Materials | Discovered exit to Materials (range 10) 1382 | -10/Materials | Entered Mines 1718 | -10/Mines | Found a Scrap Suit stashed away for nefarious purposes 1721 | -10/Mines | Found Scrap Suit 1815 | -10/Mines | Learned Materials trap positions 1850 | -10/Mines | Learned location of Mines (-9) 1858 | -10/Mines | Learned Materials security intel 1963 | -10/Mines | Deemed a non-threat by the Exiles lab entrance 1963 | -10/Mines | Identified exit to Exiles 1963 | -10/Mines | Discovered exit to Exiles (range 5) 1988 | -10/Mines | A weapon hastily lodged in a ceiling crevice suddenly fell to the ground 2008 | -10/Mines | Discovered exit to Materials (range 5) 2085 | -10/Mines | Discovered exit to Materials (range 15) 2251 | -10/Mines | Identified exit to Subcaves 2251 | -10/Mines | Discovered exit to Subcaves (range 6) 2261 | -10/Mines | Entered Subcaves 2262 | -10/Subcaves | Approached by a straggling Scientist 2488 | -10/Subcaves | Visited 4L-MR0's lab 2783 | -10/Subcaves | Shifting Twisted Machinery released Multitool 2804 | -10/Subcaves | Shifting Twisted Machinery released Flamer 2854 | -10/Subcaves | Shifting Twisted Machinery released Sub. Monowheel 2856 | -10/Subcaves | Shifting Twisted Machinery released Riot Gun 2895 | -10/Subcaves | Visited Clippyterm 2899 | -10/Subcaves | Learned location of Extension (-4) 3004 | -10/Subcaves | Learned location of Zion (-7) 3004 | -10/Subcaves | Met a Zionite searching for "candidates" 3054 | -10/Subcaves | A swath of the cavern ceiling suddenly collapsed 3583 | -10/Subcaves | Learned location of 1 exit from Materials 3612 | -10/Subcaves | Disturbed a concealed Subdweller 3935 | -10/Subcaves | Build established: Derelict-Mutant 4623 | -10/Subcaves | A swath of the cavern ceiling suddenly collapsed 4761 | -10/Subcaves | Build established: Hacker-Mutant 4785 | -10/Subcaves | Shifting Twisted Machinery released Sub. Beam Cannon 4812 | -10/Subcaves | Shifting Twisted Machinery released Sub. Laser 5340 | -10/Subcaves | Identified exit to Materials 5340 | -10/Subcaves | Discovered exit to Materials (range 15) 5365 | -10/Subcaves | Core integrity fell below 50% 5381 | -10/Subcaves | Core integrity fell below 20% 5430 | -10/Subcaves | Lost 4 parts (1p1u2w) 5497 | -10/Subcaves | Destroyed by 5P-6AZ(R) with Subdweller Machine Gun Last Messages --------------- 05340_ EXIT=FOUND: MATERIALS 05361_ Slammed into I9-IKE(R). 05364_ Slammed into 7K-XI2(R). 05366_ HV Slug penetrates 7K-XI2(R). 05366_ 7K-XI2(R) knocked back. 05366_ HV Slug penetrates 7K-XI2(R). 05366_ HV Slug penetrates Wall. 05372_ Slammed into 7K-XI2(R). 05373_ Acquired 1 matter. 05374_ Bore Cannon destroyed. 05376_ Slammed into 7K-XI2(R). 05378_ Ion Engine destroyed. 05385_ 7K-XI2(R) destroyed. 05387_ Acquired 32 matter. 05390_ I9-IKE(R) affixes Scrap Shield Fragment to Scrap Shield. 05393_ Barrage Gun destroyed. 05399_ Structural Scanner destroyed. 05402_ I9-IKE(R) destroyed. 05403_ Acquired 44 matter. Map ----- +----------------------------------------------------+ | & ### ###### ##### ###??#####????? | | # # #### ####### #########???????????? | | ##### ### #############??????????????????? | | #### ### ""###########??????????????????? | | #### #|" ##???????????????????????????? | | ### ## # " ##???????????????????????????? | | ##### ### ### ###???????????????????????????? | | ##### ### #######???????????????????????????? | | ???## ## "|#####????????????????????????????? | | ??? "#""""" ##??????????????????????????????? | | ??# ## #"""""" ##??????????????????????????????? | | #?##### ##??????????????????????????????? | | ###?#### ##??????????????????????????????? | | ###?###### ##??????????????????????????????? | | ???####### ##??????????????????????????????? | | ##### ####??????????????????????????????? | | "### ## ??????????????????????????????# | | ??????????#######???????########## | | ## ?????#### ???############## | | ## ##???? ????? "" ##### ### ##" ## | | ###?????# ????? "? ## " " ## | | ###??????? ??### "" # "" ## | | ###??????????# ## ##" ### # ### "# | | " "###??????????## RR ##" "## #####"" " | | # ####??????????# "" ## #??### " | | # #########?????????# @ "#?## #######""< | | # ###########???????### "#?## """ ####" # | | ## ## ## #########????## " ### "" #### # | | ## ############## " " ## ##?## | | #### ## # # ##### ## "" " #? #??## | | ########### "" "# #?""#?#### | | ??######### ##### #" #### | | #### ####" # ### ##### ##?### "" ### | | #### ############ #??####### ??## | | ### #####???????# #?### ##### #### | | """ ####?????????# ##### ###??##### | | """ ###??######??#########" ###??#### | | """& ##??#######????????## ####?## | | ## ! ######## ##????????## ###?## | | ## ######## ##???????#### ##?### | | #" ### ### ###??????#### ####### | | ### ## ####?????## ########### | | #### ########## ######## #" | | ##### ########## ## ## | | ###### #### ### ## | | #### ## ### ## ## | | ### ## ## ### | | ## ## ### ### ### # | | ## ## #### ##### ###### | | ## ### ##### ############ | +----------------------------------------------------+ Best States ------------- Heat Dissipation 25 Energy Generation 10 Energy Capacity 250 Matter Stores 300 Matter Capacity 300 Sight Range 16 Robot Scan Range 14 Terrain Scan Density 10 Resistance: KI 35 Resistance: TH 35 Resistance: EX 35 Resistance: EM 35 Resistance: I 35 Resistance: S 35 Resistance: P 35 Evasion (%) 50 Recoil Reduction 2 Offensive Hacking 20 Item Schematics ----------------- Huge Storage Unit | -10/Materials | Hacked Cargo Storage Unit | -10/Materials | Hacked Robot Schematics ------------------ W-16 Scout | -10/Materials | Hacked Fabricated ------------ Nothing Repaired ---------- Nothing Studied --------- None Alien Tech Used ----------------- None Achievements -------------- None Challenges ------------ None Game ------ Seed ElectrostormLaunchChainsaw Manual? 0 Play Time 00:25:08 Cumulative 321.5 hours Start 2026.01.29 @ 10:10:25 End 2026.01.29 @ 11:31:00 Sessions 1 Manual Loads 0 Difficulty Explorer Special Mode None Game No. 504 Rogue 0 Adventurer 0 Explorer 504 Win Type - Total 0 Types 0/0/0/0/0/0/0/0/0/0 Lore% 77 Gallery% 70 Achievement% 56 Wizard Run 0 Options --------- Layout 1 ASCII 0 Keyboard 0 Movement Mouse Keybinds 1 Fullscreen 1 Font 24/Smallcaps Map View 50x35 Zoom Use 0% Tactical HUD 1 Map Filters NONE Filters NONE Steam 1 RUN: 1e2ebdd2-eedb-41f0-b631-068304ab92a9